bitfinex-derivatives/quotes_SOLF0:USTF0_20241024
["timestamp","ask_amount","ask_price","bid_price","bid_amount"]
[1729756381976,7.10377021,173.19,173.16,2.8901]
[1729756382174,7.10377021,173.18,173.16,1.44515199]
[1729756382379,7.10377021,173.18,173.12,7.10377021]
[1729756382380,7.10377021,173.18,173.15,1.44515199]
[1729756382577,7.10377021,173.16,173.13,1.44515199]
[1729756382773,1.8843,173.27,173.1,3.4871]
[1729756382774,9.99427021,173.14,173.1,4.6628]
[1729756382975,7.10377021,173.14,173.11,1.44545144]
[1729756383182,7.10377021,173.14,173.12,1.44545144]
[1729756383380,7.10377021,173.14,173.08,7.10377021]
[1729756383586,7.10377021,173.14,173.09,1.44552362]
[1729756383880,7.10377021,173.13,173.1,1.44552362]
[1729756384079,4.88,173.17,173.09,1.1555]
[1729756384080,7.10377021,173.14,173.09,1.1555]
[1729756384276,7.10377021,173.14,173.1,1.44561128]
[1729756384477,7.10377021,173.14,173.1,2.8911]
[1729756384679,7.10377021,173.14,173.1,4.33671128]
[1729756384882,7.10377021,173.14,173.1,2.8911]
[1729756385078,7.10377021,173.14,173.1,4.33671128]
[1729756385274,7.10377021,173.14,173.11,2.891]
[1729756385878,7.10377021,173.14,173.12,2.8909]
[1729756386093,7.10377021,173.14,173.09,8.25927021]
[1729756386379,7.10377021,173.14,173.11,2.891]
[1729756387575,2.8902,173.16,173.11,9.99477021]
[1729756387776,7.10377021,173.15,173.1,7.10377021]
[1729756387977,7.10377021,173.15,173.12,2.8909]
[1729756388377,7.10377021,173.14,173.12,2.8909]
[1729756389175,7.10377021,173.14,173.12,2.8908]
[1729756395284,7.10377021,173.14,173.13,2.8907]
[1729756395487,7.10377021,173.15,173.1,7.10377021]
[1729756396186,7.10377021,173.15,173.1,8.25950021]
[1729756396378,8.5628,173.2,173.14,7.10377021]
[1729756396596,7.10377021,173.21,173.16,7.10377021]
[1729756396779,4.88,173.22,173.16,7.10377021]
[1729756396982,7.10377021,173.21,173.18,2.8898]
[1729756397785,7.10377021,173.21,173.16,8.25950021]
[1729756399282,9.99317021,173.21,173.18,2.8898]
[1729756399481,7.10377021,173.21,173.16,8.25950021]
[1729756400083,2.8893,173.22,173.18,9.99347021]
[1729756400280,11.98377021,173.23,173.18,7.10377021]
[1729756400482,7.10377021,173.23,173.18,7.10377021]
[1729756400882,9.99277021,173.23,173.19,2.8896]
[1729756402083,7.10377021,173.2,173.12,1.44509856]
[1729756402281,7.10377021,173.2,173.13,8.54886877]
[1729756402592,7.10377021,173.2,173.15,7.10377021]
[1729756403883,7.10377021,173.21,173.15,7.10377021]
[1729756404184,7.10377021,173.21,173.17,7.10377021]
[1729756404383,7.10377021,173.21,173.15,8.25950021]
[1729756404685,7.10377021,173.21,173.15,7.10377021]
[1729756404890,7.10377021,173.21,173.15,8.25950021]
[1729756405286,7.10377021,173.21,173.15,9.70459877]
[1729756405482,7.10377021,173.21,173.15,8.25950021]
[1729756405987,7.10377021,173.21,173.15,9.70459877]
[1729756406183,7.10377021,173.21,173.15,8.25950021]
[1729756406383,7.10377021,173.21,173.18,2.8898]
[1729756406581,7.10377021,173.21,173.16,1.44509856]
[1729756406782,7.10377021,173.18,173.13,1.44509856]
[1729756406984,7.10377021,173.18,173.14,1.44509856]
[1729756407288,7.10377021,173.16,173.15,1.44520443]
[1729756407589,7.10377021,173.16,173.12,1.44537385]
[1729756407777,7.10377021,173.16,173.13,1.44537385]
[1729756407978,7.10377021,173.16,173.12,1.44537385]
[1729756408189,7.10377021,173.16,173.14,2.8904]
[1729756408981,7.10377021,173.19,173.17,2.89]
[1729756409180,7.10377021,173.19,173.14,7.10377021]
[1729756409780,7.10377021,173.19,173.15,1.44528578]
[1729756409978,7.10377021,173.19,173.14,7.10377021]
[1729756410185,7.10377021,173.19,173.15,1.44525843]
[1729756410385,7.10377021,173.18,173.13,1.15573]
[1729756410586,7.10377021,173.17,173.12,1.15573]
[1729756410782,9.99387021,173.17,173.13,4.33598312]
[1729756410981,9.99387021,173.17,173.14,1.44538312]
[1729756411283,9.99387021,173.17,173.12,8.25950021]
[1729756411487,9.99387021,173.17,173.13,1.44538246]
[1729756411790,7.10377021,173.17,173.14,4.33588246]
[1729756412091,7.10377021,173.17,173.14,2.8905]
[1729756412391,7.10377021,173.19,173.12,8.25950021]
[1729756412593,7.10377021,173.19,173.13,1.44536836]
[1729756412792,7.10377021,173.19,173.14,4.33576836]
[1729756412793,2.89,173.18,173.14,4.33576836]
[1729756413093,2.89,173.18,173.15,1.44536836]
[1729756413286,2.89,173.18,173.12,8.25950021]
[1729756413484,2.89,173.18,173.15,2.8903]
[1729756414191,9.99357021,173.19,173.15,2.8903]
[1729756415491,2.8898,173.19,173.15,2.8903]
[1729756415684,9.99357021,173.19,173.15,2.8903]
[1729756415879,9.99357021,173.19,173.16,1.44533253]
[1729756416187,9.99357021,173.19,173.15,2.8903]
[1729756416402,7.10377021,173.19,173.16,1.44533265]
[1729756416591,10.34,173.23,173.17,7.10377021]
[1729756416799,15.58737021,173.23,173.18,1.44514858]
[1729756417096,15.58737021,173.23,173.17,7.10377021]
[1729756417281,15.58737021,173.23,173.18,1.44514704]
[1729756417588,15.58737021,173.23,173.17,7.10377021]
[1729756417793,15.58737021,173.23,173.16,7.10377021]
[1729756418090,15.58737021,173.23,173.17,1.44510074]
[1729756418293,2.8892,173.22,173.19,2.8896]
[1729756418478,15.58737021,173.23,173.16,7.10377021]
[1729756418681,15.58737021,173.23,173.17,1.44509905]
[1729756418890,18.47647021,173.23,173.19,2.8896]
[1729756419592,15.58737021,173.23,173.16,8.25950021]
[1729756419791,7.10377021,173.21,173.17,1.4450988]
[1729756419983,8.4836,173.23,173.18,1.4450988]
[1729756420290,9.99357021,173.19,173.16,2.8902]
[1729756420490,9.99357021,173.19,173.17,1.44529337]
[1729756420679,9.99357021,173.19,173.16,2.8902]
[1729756421082,9.99357021,173.19,173.17,1.44526701]
[1729756421301,9.99357021,173.19,173.16,2.8902]
[1729756421489,9.99357021,173.19,173.17,1.44527433]
[1729756421691,9.99357021,173.19,173.18,1.44527433]
[1729756421889,9.99357021,173.19,173.16,2.8902]
[1729756422189,9.99357021,173.19,173.17,1.44528105]
[1729756422390,9.99357021,173.19,173.16,2.8902]
[1729756422595,9.99357021,173.19,173.17,1.44528081]
[1729756422795,9.99357021,173.19,173.16,2.8902]
[1729756422996,9.99357021,173.19,173.17,1.4452797]
[1729756423289,9.99357021,173.19,173.16,2.8902]
[1729756423493,7.10377021,173.2,173.19,2.8897]
[1729756423690,7.10377021,173.22,173.19,2.8897]
[1729756423890,3.6236,173.23,173.17,7.10377021]
[1729756424095,11.96377021,173.26,173.19,7.10377021]
[1729756424398,11.96377021,173.26,173.17,1.15573]
[1729756424399,7.10377021,173.26,173.2,8.54890539]
[1729756424588,10.69957021,173.29,173.22,7.10377021]
[1729756424790,15.55957021,173.29,173.23,1.44513518]
[1729756424990,15.55957021,173.29,173.24,1.44513518]
[1729756425197,15.55957021,173.29,173.22,7.10377021]
[1729756425403,10.69957021,173.29,173.23,1.44477686]
[1729756425609,7.10377021,173.3,173.23,8.25950021]
[1729756425894,62.38,173.41,173.25,7.10377021]
[1729756425895,11.96377021,173.32,173.25,7.10377021]
[1729756426103,9.99137021,173.32,173.27,2.8882]
[1729756426292,9.99137021,173.32,173.25,8.25950021]
[1729756426293,7.10377021,173.32,173.25,8.25950021]
[1729756426497,7.10377021,173.35,173.3,2.8877]
[1729756426791,7.10377021,173.35,173.29,7.10377021]
[1729756427892,12.64527021,173.38,173.32,7.10377021]
[1729756428100,10.81137021,173.38,173.32,7.10377021]
[1729756428292,2.8869,173.36,173.31,2.8877]
[1729756428487,2.8869,173.36,173.31,4.04343]
[1729756429703,2.8869,173.36,173.31,1.15573]
[1729756429908,2.8869,173.36,173.32,2.8875]
[1729756430603,2.8867,173.37,173.33,2.8874]
[1729756430801,3.7076,173.38,173.31,1.09993]
[1729756431103,4.86,173.39,173.31,12.18532358]
[1729756432305,2.8866,173.38,173.31,12.18532358]
[1729756432795,2.8864,173.39,173.34,2.8871]
[1729756433800,4.86,173.41,173.34,2.8871]
[1729756433801,2.8865,173.38,173.34,2.8871]
[1729756434301,2.8878,173.31,173.28,1.1]
[1729756434511,17.78749358,173.37,173.27,1.1]
[1729756434796,17.78749358,173.37,173.27,1.1545]
[1729756434998,2.8873,173.34,173.29,2.8879]
[1729756435800,2.8873,173.34,173.28,1.1]
[1729756435994,2.8873,173.34,173.3,2.8878]
[1729756436902,2.8874,173.33,173.27,1.15446]
[1729756437808,2.8874,173.33,173.26,4.84]
[1729756437997,2.8874,173.33,173.28,2.8881]
[1729756438495,2.8872,173.34,173.28,2.8882]
[1729756438704,17.78749358,173.37,173.28,2.8882]
[1729756439097,2.8875,173.33,173.28,2.8882]
[1729756439401,11.08539358,173.32,173.25,3.98866]
[1729756439603,11.08539358,173.32,173.24,1.09977]
[1729756439800,11.08539358,173.32,173.23,4.84]
[1729756440002,11.08539358,173.32,173.21,14.83669358]
[1729756440204,11.08539358,173.28,173.18,1.44460643]
[1729756440396,15.92539358,173.28,173.21,1.1547]
[1729756440599,4.84,173.28,173.18,11.08539358]
[1729756440899,4.84,173.28,173.18,12.24045358]
[1729756441131,2.8885,173.27,173.18,12.24045358]
[1729756442209,2.8885,173.27,173.22,2.8891]
[1729756449399,4.84,173.28,173.22,2.8891]
[1729756449599,4.84,173.28,173.2,1.15496]
[1729756450403,2.8885,173.27,173.22,2.8891]
[1729756452309,7.10353948,173.26,173.22,2.8891]
[1729756453011,9.99203948,173.26,173.22,2.8891]
[1729756454705,7.10353948,173.25,173.18,1.15496]
[1729756454907,7.10353948,173.23,173.16,1.15496]
[1729756455210,7.10353948,173.23,173.17,7.10353948]
[1729756455597,9.99263948,173.23,173.19,2.8897]
[1729756457999,2.8892,173.22,173.19,2.8897]
[1729756458610,2.8892,173.22,173.17,8.20346948]
[1729756458812,2.8892,173.22,173.18,2.8899]
[1729756460012,2.8894,173.21,173.18,2.8899]
[1729756460205,7.10353948,173.23,173.18,2.8899]
[1729756460608,2.8892,173.22,173.18,2.8899]
[1729756461104,2.8892,173.22,173.19,2.8897]
[1729756461505,5.3193,173.27,173.21,7.10353948]
[1729756461506,8.3504,173.27,173.21,7.10353948]
[1729756461705,8.3504,173.27,173.23,7.10353948]
[1729756461905,6.6188,173.27,173.23,7.10353948]
[1729756462111,4.86,173.27,173.23,7.10353948]
[1729756462312,4.86,173.29,173.24,7.10353948]
[1729756462706,7.7481,173.29,173.26,2.8885]
[1729756462907,7.7481,173.29,173.24,7.10353948]
[1729756463310,2.8882,173.28,173.25,2.8887]
[1729756463505,7.10353948,173.31,173.24,7.10353948]
[1729756463812,2.888,173.29,173.26,2.8885]
[1729756464008,2.888,173.29,173.25,8.20346948]
[1729756464411,2.888,173.29,173.25,7.10353948]
[1729756465016,7.7478,173.31,173.25,7.10353948]
[1729756465219,7.10353948,173.32,173.27,7.10353948]
[1729756465909,3.7303,173.33,173.27,7.10353948]
[1729756466110,13.71983948,173.34,173.28,7.10353948]
[1729756466111,11.94353948,173.34,173.28,7.10353948]
[1729756466619,2.8874,173.33,173.29,2.8879]
[1729756467007,7.10353948,173.34,173.29,2.8879]
[1729756468216,2.8876,173.32,173.29,2.8879]
[1729756468621,5.4889,173.39,173.31,2.8876]
[1729756468819,2.8871,173.35,173.31,7.10353948]
[1729756469011,3.7366,173.39,173.33,7.10353948]
[1729756469209,7.10353948,173.38,173.31,1.09993]
[1729756469416,2.8871,173.35,173.31,9.99113948]
[1729756469709,7.10353948,173.36,173.31,7.10353948]
[1729756469917,9.99043948,173.36,173.32,2.8875]
[1729756470521,2.8869,173.36,173.32,2.8875]
[1729756471112,3.7366,173.39,173.37,2.8866]
[1729756471315,3.7366,173.39,173.32,1.09996]
[1729756471514,3.7366,173.39,173.29,1.44398153]
[1729756471715,2.8867,173.37,173.33,2.8872]
[1729756475119,2.8865,173.39,173.32,1.09996]
[1729756475618,2.8865,173.39,173.34,2.8871]
[1729756475825,2.8865,173.39,173.32,1.09996]
[1729756476711,2.8865,173.39,173.34,2.8872]
[1729756477117,2.8865,173.39,173.32,1.09996]
[1729756477920,2.8865,173.39,173.35,2.8869]
[1729756478419,2.886,173.41,173.35,1.09996]
[1729756478723,8.5325,173.43,173.35,1.09996]
[1729756479126,8.5325,173.43,173.35,3.98696]
[1729756479630,2.8865,173.39,173.35,3.98696]
[1729756479824,3.6925,173.43,173.35,1.09996]
[1729756480030,4.84,173.46,173.36,11.08567758]
[1729756480232,4.84,173.46,173.36,12.86747758]
[1729756480529,4.84,173.46,173.36,13.96743758]
[1729756480729,2.8855,173.44,173.36,13.96743758]
[1729756481922,4.84,173.48,173.36,13.96743758]
[1729756482728,2.8857,173.43,173.4,2.8862]
[1729756483332,2.8855,173.44,173.41,2.886]
[1729756484630,4.84,173.48,173.39,1.09996]
[1729756484825,2.8857,173.43,173.4,2.8862]
[1729756492025,4.84,173.47,173.39,1.09996]
[1729756492335,4.84,173.47,173.38,8.19718538]
[1729756492336,7.09715538,173.44,173.38,8.19718538]
[1729756492528,2.886,173.42,173.38,11.13755538]
[1729756492835,2.886,173.42,173.39,7.09715538]
[1729756496735,2.886,173.42,173.38,2.8865]
[1729756496736,2.8861,173.41,173.38,9.98365538]
[1729756500740,8.4841,173.47,173.39,7.09715538]
[1729756500930,2.8856,173.44,173.41,7.09715538]
[1729756501538,2.8856,173.44,173.41,9.98315538]
[1729756505338,7.09715538,173.46,173.4,1.1]
[1729756505526,2.8857,173.43,173.4,3.9862]
[1729756505727,2.8857,173.43,173.4,9.98335538]
[1729756506535,2.8857,173.43,173.4,11.08341538]
[1729756506839,2.8857,173.43,173.4,9.98335538]
[1729756507541,2.8857,173.43,173.4,11.08341538]
[1729756507932,2.8857,173.43,173.4,9.98335538]
[1729756508735,2.8857,173.43,173.4,11.08341538]
[1729756512237,2.8856,173.44,173.4,11.08341538]
[1729756512436,2.8856,173.44,173.41,2.886]
[1729756516144,2.8856,173.44,173.42,9.98295538]
[1729756523844,6.604,173.48,173.43,7.09715538]
[1729756524050,2.8853,173.46,173.44,2.8855]
[1729756524953,1.8376,173.52,173.42,1.10006]
[1729756524954,3.627,173.52,173.45,7.09715538]
[1729756525150,3.627,173.52,173.42,1.10006]
[1729756525151,4.82,173.51,173.47,7.09715538]
[1729756525955,2.8848,173.49,173.47,7.09715538]
[1729756528247,230.0,173.67,173.48,7.09715538]
[1729756528557,230.0,173.67,173.46,1.10006]
[1729756528558,7.09715538,173.51,173.46,1.10006]
[1729756528759,7.09715538,173.51,173.45,1.10006]
[1729756529059,2.8848,173.49,173.45,7.09715538]
[1729756529353,2.8848,173.49,173.45,8.19721538]
[1729756530348,2.8848,173.49,173.46,2.8852]
[1729756532254,1.8246,173.57,173.48,7.09715538]
[1729756532457,4.82,173.56,173.52,7.09715538]
[1729756533253,2.8837,173.55,173.52,9.98125538]
[1729756536151,2.8836,173.56,173.53,2.884]
[1729756536357,7.09715538,173.58,173.52,7.09715538]
[1729756538261,2.8837,173.55,173.52,9.98125538]
[1729756538657,4.82,173.59,173.52,7.09715538]
[1729756538861,7.09715538,173.58,173.52,7.09715538]
[1729756539261,2.8837,173.56,173.53,2.884]
[1729756540558,2.8837,173.56,173.53,9.98115538]
[1729756543067,7.09715538,173.58,173.53,7.09715538]
[1729756543359,7.09715538,173.55,173.47,4.82]
[1729756543559,7.09715538,173.53,173.49,7.09715538]
[1729756543960,2.8844,173.52,173.49,9.98165538]
[1729756544161,7.09715538,173.56,173.5,7.09715538]
[1729756544558,7.09715538,173.55,173.49,1.10006]
[1729756544761,7.09715538,173.55,173.49,7.09715538]
[1729756545762,7.09715538,173.55,173.49,9.98185538]
[1729756546664,2.8842,173.53,173.49,9.98185538]
[1729756548059,7.09715538,173.55,173.49,7.09715538]
[1729756548259,4.82,173.59,173.48,9.98205538]
[1729756548260,2.8845,173.51,173.48,9.98205538]
[1729756548861,2.8849,173.48,173.47,1.15333]
[1729756549258,2.8849,173.48,173.45,14.80255538]
[1729756549259,2.8849,173.48,173.45,7.09715538]
[1729756550269,2.8849,173.48,173.45,9.98245538]
[1729756550671,2.8849,173.48,173.45,2.8853]
[1729756551173,2.8849,173.48,173.44,5.87262]
[1729756551367,2.8849,173.48,173.44,11.08277538]
[1729756551563,2.8849,173.48,173.44,9.98265538]
[1729756552569,2.8849,173.48,173.44,15.16452506]
[1729756552769,2.8849,173.48,173.44,9.98265538]
[1729756553172,2.8848,173.49,173.44,9.98265538]
[1729756553372,7.09715538,173.5,173.44,9.98265538]
[1729756553874,7.09715538,173.5,173.43,1.10006]
[1729756554074,2.8853,173.46,173.43,8.19721538]
[1729756554277,7.09715538,173.49,173.43,1.10006]
[1729756554570,2.8855,173.45,173.4,10.00247441]
[1729756554775,2.8855,173.45,173.4,11.91715538]
[1729756554976,2.8855,173.45,173.41,5.18257149]
[1729756555273,2.8855,173.45,173.4,11.91715538]
[1729756555668,2.8855,173.45,173.4,13.01721538]
[1729756555869,2.8855,173.45,173.41,7.09715538]
[1729756556275,2.8855,173.45,173.42,2.8859]
[1729756557375,2.8855,173.45,173.41,15.16628913]
[1729756557670,2.8855,173.45,173.41,9.98315538]
[1729756557974,2.8855,173.45,173.42,2.8858]
[1729756561180,2.8855,173.45,173.42,3.98586]
[1729756565476,2.8855,173.45,173.42,2.8858]
[1729756565975,7.09715538,173.47,173.41,8.19724538]
[1729756566177,2.8856,173.44,173.41,2.886]
[1729756566571,2.8854,173.45,173.41,7.09715538]
[1729756566776,2.8854,173.45,173.42,2.8858]
[1729756567080,2.8854,173.45,173.42,3.98583]
[1729756570782,2.8851,173.47,173.43,2.8856]
[1729756571381,7.09715538,173.48,173.44,2.8855]
[1729756571586,9.98215538,173.48,173.44,2.8855]
[1729756571787,2.885,173.48,173.44,7.09715538]
[1729756571990,4.8,173.51,173.45,7.09715538]
[1729756572184,4.8,173.51,173.43,1.10003]
[1729756572185,4.8,173.53,173.47,7.09715538]
[1729756572786,2.8846,173.5,173.46,3.98513]
[1729756572986,7.09715538,173.49,173.44,4.8]
[1729756573189,4.8,173.53,173.45,1.44290294]
[1729756573400,4.8,173.53,173.4,12.99718538]
[1729756573401,7.09715538,173.46,173.41,6.63283688]
[1729756573694,7.09715538,173.44,173.42,6.63283688]
[1729756573889,7.09715538,173.44,173.41,2.8859]
[1729756574395,4.8,173.49,173.4,5.90003]
[1729756574695,4.8,173.49,173.42,2.8859]
[1729756574696,9.98255538,173.45,173.42,2.8859]
[1729756575195,4.8,173.49,173.4,12.99718538]
[1729756575489,7.09715538,173.46,173.41,6.6346057]
[1729756575693,7.09715538,173.46,173.42,6.6346057]
[1729756575900,7.09715538,173.46,173.4,8.19718538]
[1729756576097,7.09715538,173.46,173.41,6.63460077]
[1729756576293,2.8854,173.45,173.42,9.52030077]
[1729756576594,2.8854,173.45,173.42,2.8857]
[1729756577892,2.8857,173.43,173.4,2.8861]
[1729756578087,2.8857,173.43,173.41,6.63510284]
[1729756578293,2.8857,173.43,173.4,2.8861]
[1729756578594,9.98315538,173.42,173.41,6.6352651]
[1729756578803,7.09715538,173.42,173.35,1.15396]
[1729756579099,9.98345538,173.4,173.36,9.52283114]
[1729756579299,9.98345538,173.4,173.37,6.63613114]
[1729756579496,9.98345538,173.4,173.38,6.63613114]
[1729756579699,9.98345538,173.4,173.35,7.09715538]
[1729756579892,9.98345538,173.4,173.35,8.19721538]
[1729756580099,9.98345538,173.4,173.36,6.63608858]
[1729756580296,9.98345538,173.4,173.37,9.52278858]
[1729756580502,9.98345538,173.4,173.38,6.63608858]
[1729756580896,9.98345538,173.4,173.37,2.8867]
[1729756581095,9.98345538,173.4,173.38,6.6356457]
[1729756581301,9.98345538,173.4,173.37,2.8867]
[1729756581505,9.98345538,173.4,173.38,6.63520285]
[1729756581803,9.98345538,173.4,173.37,2.8867]
[1729756581999,9.98345538,173.4,173.38,6.63520603]
[1729756582300,9.98345538,173.4,173.37,2.8867]
[1729756582497,7.09715538,173.4,173.38,1.44346154]
[1729756582700,7.09715538,173.4,173.37,2.8867]
[1729756582996,7.09715538,173.43,173.38,8.54061692]
[1729756583198,2.8859,173.42,173.39,2.8863]
[1729756583399,7.09715538,173.43,173.37,1.10006]
[1729756583700,4.8,173.45,173.38,9.52081087]
[1729756583897,7.09715538,173.43,173.38,2.8865]
[1729756584095,2.886,173.42,173.38,2.8865]
[1729756584295,7.09715538,173.43,173.38,2.8865]
[1729756584803,2.8864,173.39,173.34,7.09715538]
[1729756584998,2.8864,173.39,173.35,6.63406553]
[1729756585303,2.8864,173.39,173.36,6.63406553]
[1729756585499,2.8862,173.4,173.37,6.63406553]
[1729756585700,2.8862,173.4,173.38,1.44347456]
[1729756585891,2.8862,173.4,173.37,7.09715538]
[1729756586097,2.8862,173.4,173.38,6.633626]
[1729756586400,11.89715538,173.45,173.39,9.98335538]
[1729756586596,7.09715538,173.44,173.39,7.09715538]
[1729756587001,2.886,173.42,173.39,7.09715538]
[1729756589106,9.98315538,173.42,173.38,9.98365538]
[1729756589608,4.8,173.45,173.38,7.09715538]
[1729756589798,9.98305538,173.43,173.39,2.8863]
[1729756590002,9.98305538,173.43,173.36,1.10009]
[1729756590003,7.09715538,173.43,173.36,1.10009]
[1729756590203,7.09715538,173.43,173.38,7.09715538]
[1729756590599,2.8859,173.42,173.39,6.63209995]
[1729756590807,2.8859,173.42,173.38,9.98365538]
[1729756591005,2.8859,173.42,173.39,6.63215959]
[1729756591306,7.09715538,173.43,173.38,7.09715538]
[1729756591516,7.09715538,173.43,173.39,5.18876485]
[1729756591694,7.09715538,173.43,173.38,7.09715538]
[1729756591894,7.09715538,173.43,173.39,6.63219285]
[1729756592093,7.09715538,173.43,173.38,7.09715538]
[1729756592298,7.09715538,173.43,173.39,6.63179254]
[1729756592610,7.09715538,173.42,173.36,1.10009]
[1729756592910,7.09715538,173.42,173.37,6.63196727]
[1729756593208,7.09715538,173.42,173.38,6.63196727]
[1729756593408,7.09715538,173.42,173.37,2.8866]
[1729756593606,7.09715538,173.42,173.38,6.63192978]
[1729756593908,7.09715538,173.41,173.36,3.98689]
[1729756594109,7.09715538,173.41,173.37,6.6321435]
[1729756594302,7.09715538,173.42,173.36,1.10009]
[1729756594606,7.09715538,173.42,173.37,9.518149]
[1729756594806,7.09715538,173.42,173.37,2.8866]
[1729756595001,2.8861,173.41,173.38,6.63150199]
[1729756595209,2.8861,173.41,173.38,2.8865]
[1729756595606,2.8861,173.41,173.39,6.6307443]
[1729756595900,7.09715538,173.46,173.4,8.54039963]
[1729756596112,10.65575538,173.48,173.42,7.09715538]
[1729756596306,2.8854,173.46,173.42,9.98295538]
[1729756596707,7.09715538,173.44,173.33,5.3731]
[1729756596901,2.886,173.42,173.37,7.09715538]
[1729756597104,2.886,173.42,173.38,6.63039838]
[1729756597299,9.98315538,173.42,173.39,6.63039838]
[1729756597503,2.8862,173.4,173.37,2.8866]
[1729756597707,2.8862,173.4,173.38,6.63048545]
[1729756597907,2.8862,173.4,173.39,6.63048545]
[1729756598711,2.8862,173.4,173.37,2.8866]
[1729756598905,2.8862,173.4,173.39,1.44327084]
[1729756599109,2.8862,173.4,173.36,4.8]
[1729756599310,7.09715538,173.41,173.37,6.63072227]
[1729756599611,7.09715538,173.42,173.38,6.63072227]
[1729756599811,2.8861,173.41,173.37,9.98365538]
[1729756600010,2.8861,173.41,173.38,6.63057513]
[1729756600211,3.5586,173.48,173.39,7.09715538]
[1729756600410,2.8855,173.45,173.41,7.09715538]
[1729756600604,7.09715538,173.42,173.33,5.3731]
[1729756600804,2.8861,173.41,173.37,9.98365538]
[1729756601010,2.8861,173.41,173.38,6.63024779]
[1729756601216,2.8861,173.41,173.39,6.63024779]
[1729756601406,2.8861,173.41,173.37,7.09715538]
[1729756601606,2.8861,173.41,173.38,6.63054248]
[1729756601812,2.8861,173.41,173.38,2.8864]
[1729756602717,9.98305538,173.42,173.36,7.09715538]
[1729756602915,9.98305538,173.42,173.37,13.72832125]
[1729756603218,9.98305538,173.42,173.38,9.51756587]
[1729756603420,9.98305538,173.42,173.39,6.63116587]
[1729756603612,9.98305538,173.42,173.38,2.8864]
[1729756603910,9.98305538,173.42,173.39,6.63212843]
[1729756604113,9.98305538,173.42,173.38,2.8864]
[1729756604416,9.98305538,173.42,173.39,6.63304805]
[1729756604615,9.98305538,173.42,173.38,2.8864]
[1729756604916,9.98305538,173.42,173.39,6.63324163]
[1729756605120,9.98305538,173.42,173.38,2.8864]
[1729756605414,9.98305538,173.42,173.39,6.63439196]
[1729756605616,9.98305538,173.42,173.38,2.8864]
[1729756606010,9.98305538,173.42,173.39,6.63434042]
[1729756606314,1.8703,173.46,173.39,2.8862]
[1729756606315,2.8858,173.43,173.39,2.8862]
[1729756606509,2.8858,173.43,173.4,5.19234371]
[1729756606708,2.8858,173.43,173.39,9.98335538]
[1729756607022,2.8858,173.43,173.4,6.63564081]
[1729756607214,2.8858,173.43,173.39,11.08344538]
[1729756607409,2.8858,173.43,173.4,6.63726608]
[1729756607712,2.8858,173.43,173.39,11.08344538]
[1729756607913,2.8858,173.43,173.4,6.63726711]
[1729756608113,2.8858,173.43,173.41,5.19566469]
[1729756608312,2.8858,173.43,173.39,11.08344538]
[1729756608508,2.8858,173.43,173.4,6.63913812]
[1729756608709,2.8858,173.43,173.41,1.44329102]
[1729756609019,2.8858,173.43,173.39,11.08344538]
[1729756609318,2.8858,173.43,173.4,6.6411098]
[1729756609522,2.8858,173.43,173.39,11.08344538]
[1729756609709,2.8858,173.43,173.41,6.64125207]
[1729756610015,2.8858,173.43,173.39,11.08344538]
[1729756610211,2.8858,173.43,173.4,9.5274714]
[1729756610410,2.8858,173.43,173.41,6.6412714]
[1729756610610,2.8858,173.43,173.4,2.8862]
[1729756610812,2.8858,173.43,173.41,6.64143944]
[1729756611010,2.8858,173.43,173.4,2.8862]
[1729756611212,2.8858,173.43,173.41,6.64143944]
[1729756611407,2.8858,173.43,173.4,2.8862]
[1729756611614,2.8858,173.43,173.41,6.64159763]
[1729756611916,2.8858,173.43,173.42,1.44329749]
[1729756612115,2.8858,173.43,173.42,6.64387703]
[1729756613213,2.8858,173.43,173.4,2.8862]
[1729756613410,2.8858,173.43,173.42,1.44329757]
[1729756613606,2.8858,173.43,173.42,6.6440069]
[1729756613815,9.98295538,173.43,173.42,6.6440069]
[1729756614118,2.8864,173.39,173.36,2.8868]
[1729756614311,9.98355538,173.39,173.37,6.64466766]
[1729756614516,9.98355538,173.39,173.38,6.64466766]
[1729756614915,2.8864,173.39,173.38,6.64466766]
[1729756615111,3.5121,173.42,173.38,6.64466766]
[1729756615307,7.09715538,173.41,173.39,6.64466766]
[1729756615508,11.89715538,173.43,173.4,1.44346543]
[1729756615717,11.89715538,173.43,173.37,7.09715538]